fUSD/lending_fUSD_20250417
["ID","MTS","AMOUNT","RATE_DAILY","PERIOD"]
[358315144,1744925450140,-677.72312856,0.00079998,120]
[358315145,1744925450150,-500.0,0.00079998,120]
[358315146,1744925450160,-500.0,0.00079998,120]
[358315147,1744925450170,-712.2,0.00079998,120]
[358315148,1744925450180,-712.2,0.00079998,120]
[358315149,1744925450191,-500.0,0.00079998,120]
[358315150,1744925450200,-500.0,0.00079998,120]
[358315151,1744925450210,-587.79,0.00079998,120]
[358315152,1744925450220,-587.79,0.00079998,120]
[358315153,1744925450229,-2834.74,0.00079998,120]
[358315154,1744925450240,-2834.74,0.00079998,120]
[358315155,1744925450250,-500.0,0.00079998,90]
[358315156,1744925450259,-500.0,0.00079998,90]
[358315157,1744925450269,-500.0,0.00079999,90]
[358315158,1744925450279,-500.0,0.00079999,90]
[358315159,1744925450290,-21479.4,0.00079999,7]
[358315160,1744925450299,-2432.73438806,0.00079999,7]
[358315161,1744925450319,-150.0,0.00077331,60]
[358315162,1744925450328,-150.0,0.00077351,60]
[358315163,1744925450338,-17.83985984,0.00079999,7]
[358315164,1744925775762,287.68,0.00028,120]
[358315165,1744925884547,-218.59596,0.00024198,2]
[358315170,1744926431137,-250.0,0.00024198,2]
[358315171,1744926431158,-250.0,0.00026617,2]
[358315172,1744926431180,-250.0,0.00026617,2]
[358315173,1744926431201,-150.0,0.00034548,10]
[358315174,1744926431222,-160.0,0.00037011,30]
[358315175,1744926431243,-38.46924045,0.00045,120]
[358315176,1744926431271,-112.53075955,0.00045,120]
[358315177,1744926431292,-116.59716776,0.00045589,10]
[358315178,1744926436086,-33.40283224,0.00045589,10]
[358315179,1744926436107,-284.42382,0.00051,30]
[358315180,1744926436293,-154.04371161,0.0005164,2]
[358315181,1744926436318,-623.253937,0.0005174,5]
[358315182,1744926436339,-150.0,0.00051863,2]
[358315183,1744926436366,-151.0,0.00052,120]
[358315184,1744926436388,-151.0,0.000536,100]
[358315185,1744926436410,-30.495738,0.00053769,100]
[358315186,1744926436441,-333.056262,0.00053769,100]
[358315187,1744926436463,-1007.77299094,0.00053812,11]
[358315188,1744926436484,-380.69119355,0.00053812,120]
[358315189,1744926436506,-380.0,0.00053812,10]
[358315190,1744926436527,-200.0,0.00053812,90]
[358315191,1744926436548,-278.36521374,0.00053813,30]
[358315192,1744926436570,-12490.03661958,0.00055,15]
[358315193,1744926448118,-253.72,0.00045511,7]
[358315194,1744926448141,-151.0,0.0004743,15]
[358315195,1744926448164,-687.95696704,0.00055,15]
[358315196,1744926451117,-228.16769862,0.00055,15]
[358315197,1744926552093,-179.50943059,0.00054725,10]
[358315198,1744926552115,-4233.33926429,0.00055,15]
[358315199,1744926552141,-153.52,0.000551,54]
[358315200,1744926552165,-350.0,0.00055826,111]
[358315201,1744926552187,-250.0,0.0005745,120]
[358315202,1744926552211,-6752.18249557,0.00057767,15]
[358315203,1744926552241,-672.02848374,0.00057767,15]
[358315207,1744926631751,-498.72,0.0005,120]
[358315208,1744926631761,-153551.62892532,0.00053813,30]
[358315209,1744926631772,-1705.02371161,0.00053813,30]
[358315210,1744926631817,-20865.57695959,0.00053813,30]
[358315211,1744926631828,-1100.0,0.00053813,30]
[358315212,1744926631840,-892.10250175,0.00053813,30]
[358315213,1744926631881,-840.0,0.00053813,30]
[358315214,1744926631942,-320.29041264,0.00053813,30]
[358315215,1744926631953,-1139.16006464,0.00053813,30]
[358315216,1744926631962,-203.43993577,0.0005579,111]
[358315229,1744926637873,-146.56006423,0.0005579,111]
[358315230,1744926637883,-10215.28957022,0.00057767,15]
[358315231,1744926637894,-23900.0,0.00059025,2]
[358315232,1744926637904,-350.0,0.00059194,111]
[358315233,1744926637913,-350.0,0.00059194,111]
[358315234,1744926637923,-200.0,0.00060409,30]
[358315235,1744926637934,-17639.50054953,0.00060533,15]
[358315236,1744926637944,-165.92,0.00063172,120]
[358315237,1744926637953,-236.38,0.00063235,2]
[358315238,1744926637963,-17639.50054953,0.000633,15]
[358315239,1744926637972,-3915.41,0.00063355,2]
[358315240,1744926637981,-1837.03798038,0.00064175,2]
[358315241,1744926637990,-211.02692822,0.00064175,120]
[358315242,1744926637999,-163.12707936,0.00064175,120]
[358315243,1744926638008,-500.0,0.00064175,120]
[358315244,1744926638017,-500.0,0.00064175,120]
[358315245,1744926638027,-500.0,0.00064175,120]
[358315246,1744926638037,-500.0,0.00064175,120]
[358315247,1744926638046,-500.0,0.00064175,120]
[358315248,1744926638055,-459.99521717,0.00064175,120]
[358315249,1744926638065,-500.0,0.00064175,120]
[358315250,1744926638075,-500.0,0.00064175,120]
[358315251,1744926638085,-500.0,0.00064175,120]
[358315252,1744926638094,-500.0,0.00064175,120]
[358315253,1744926638103,-500.0,0.00064175,120]
[358315254,1744926638113,-500.0,0.00064175,120]
[358315255,1744926638122,-500.0,0.00064175,120]
[358315256,1744926638131,-571.99665201,0.00064175,120]
[358315257,1744926638141,-500.0,0.00064175,120]
[358315258,1744926638151,-500.0,0.00064175,120]
[358315259,1744926638160,-500.0,0.00064175,120]
[358315260,1744926638169,-500.0,0.00064175,120]
[358315261,1744926638178,-500.0,0.00064175,120]
[358315263,1744926638187,-500.0,0.00064175,120]
[358315265,1744926638197,-500.0,0.00064175,120]
[358315266,1744926638207,-600.39765641,0.00064175,120]
[358315267,1744926638216,-70574.65511782,0.00064176,2]
[358315268,1744926638226,-9847.00604801,0.00064475,15]
[358315269,1744926638235,-450.95,0.00064575,30]
[358315270,1744926638244,-184.48,0.00065391,2]
[358315271,1744926638254,-15964.1831485,0.00066067,15]
[358315272,1744926638271,-1675.31740103,0.00066067,15]
[358315273,1744926638281,-1000.0,0.0006615,120]
[358315274,1744926638290,-430.29259897,0.00066189,15]
[358315275,1744926638302,-450.166763,0.00066189,15]
[358315277,1744926638318,-1897.37258192,0.00066189,15]
[358315320,1744926640126,-7069.17410408,0.00066189,15]
[358315321,1744926640137,-200.0,0.00066564,2]
[358315322,1744926640147,-363.553,0.00067827,120]
[358315323,1744926640157,-9847.00604797,0.00067903,15]
[358315324,1744926640167,-791.0,0.00068073,2]
[358315325,1744926640177,-646.67500186,0.00068493,120]
[358315326,1744926640187,-395.67155602,0.00068493,120]
[358315327,1744926640197,-168.52,0.00068704,2]
[358315328,1744926640206,-17639.50054953,0.00068833,15]
[358315329,1744926640215,-870.1162155,0.00069517,41]
[358315330,1744926640225,-9847.00604797,0.00069617,15]
[358315331,1744926640234,-174.4,0.00069654,2]
[358315332,1744926640244,-6401.7322,0.00071,10]
[358315333,1744926640254,-9847.00604797,0.00071331,15]
[358315334,1744926640264,-17639.50054953,0.000716,15]
[358315335,1744926640274,-402.17,0.00072235,2]
[358315336,1744926640283,-9847.00604797,0.00073044,15]
[358315337,1744926640293,-165.92,0.000737,120]
[358315338,1744926640303,-1365.9,0.00074036,30]
[358315339,1744926640313,-322.2111102,0.00074185,120]
[358315340,1744926640323,-150.0,0.00074295,30]
[358315341,1744926640333,-500.0,0.00074366,120]
[358315342,1744926640343,-649.64989848,0.00074366,120]
[358315343,1744926640353,-491.14958141,0.00074366,2]
[358315344,1744926640363,-17639.50054953,0.00074367,15]
[358315345,1744926640373,-1000.0,0.00074419,120]
[358315346,1744926640383,-402.17,0.00074499,2]
[358315347,1744926640392,-9847.00604797,0.00074758,15]
[358315348,1744926640403,-150.0,0.00074917,2]
[358315349,1744926640413,-1460.03573451,0.00074917,2]
[358315350,1744926640423,-236.01,0.00075211,2]
[358315351,1744926640433,-9847.00604797,0.00076472,15]
[358315352,1744926640443,-402.17,0.00076763,2]
[358315353,1744926640453,-206.89,0.0007687,120]
[358315354,1744926640463,-453.78,0.00076901,2]
[358315355,1744926640474,-17639.50054953,0.00077133,15]
[358315356,1744926640484,-1468.91,0.00077592,120]
[358315357,1744926640494,-2000.0,0.00077883,4]
[358315358,1744926640504,-9847.00604797,0.00078186,15]
[358315359,1744926640513,-502.59425064,0.0007836,3]
[358315360,1744926640523,-311.73011261,0.00078405,2]
[358315362,1744926640533,-4944.95,0.00079,120]
[358315364,1744926640543,-402.17,0.00079027,2]
[358315366,1744926640552,-547.0,0.00079505,60]
[358315368,1744926640562,-2000.0,0.00079599,14]
[358315370,1744926640572,-150.0,0.0007973,60]
[358315372,1744926640582,-165.75842618,0.00079733,60]
[358315374,1744926640591,-150.0,0.00079734,60]
[358315376,1744926640601,-150.0,0.00079737,60]
[358315378,1744926640611,-150.0,0.00079739,60]
[358315380,1744926640620,-150.0,0.00079741,60]
[358315382,1744926640630,-150.0,0.00079743,60]
[358315384,1744926640640,-150.0,0.00079743,60]
[358315386,1744926640649,-150.0,0.00079745,60]
[358315388,1744926640659,-150.0,0.00079746,60]
[358315390,1744926640668,-150.0,0.0007976,60]
[358315392,1744926640677,-150.0,0.00079762,60]
[358315409,1744926640841,-150.0,0.00079766,60]
[358315410,1744926640854,-150.0,0.00079766,60]
[358315411,1744926640865,-150.0,0.00079767,60]
[358315412,1744926640874,-150.0,0.00079768,60]
[358315413,1744926640884,-150.0,0.00079768,60]
[358315414,1744926640895,-150.0,0.00079769,60]
[358315415,1744926640904,-150.0,0.00079772,60]
[358315416,1744926640913,-150.0,0.00079772,60]
[358315417,1744926640923,-150.0,0.00079777,60]
[358315418,1744926640932,-150.0,0.00079779,60]
[358315419,1744926640941,-150.0,0.0007978,60]
[358315420,1744926640950,-150.0,0.00079783,60]
[358315421,1744926640959,-150.0,0.00079783,60]
[358315422,1744926640968,-150.0,0.00079789,60]
[358315423,1744926640977,-150.0,0.0007979,60]
[358315424,1744926640985,-150.0,0.00079794,60]
[358315425,1744926640995,-4372.77,0.00079799,7]
[358315426,1744926641005,-4372.77,0.00079799,7]
[358315427,1744926641014,-445.25241965,0.00079799,120]
[358315428,1744926641024,-500.0,0.00079799,120]
[358315429,1744926641034,-500.0,0.00079799,120]
[358315430,1744926641043,-500.0,0.00079799,120]
[358315431,1744926641053,-500.0,0.00079799,120]
[358315432,1744926641063,-500.0,0.00079799,120]
[358315433,1744926641072,-500.0,0.00079799,120]
[358315434,1744926641082,-708.68,0.00079799,120]
[358315435,1744926641091,-708.68,0.00079799,120]
[358315436,1744926641102,-150.0,0.00079801,60]
[358315437,1744926641112,-150.0,0.00079804,60]
[358315438,1744926641122,-150.0,0.00079805,60]
[358315439,1744926641131,-150.0,0.00079807,60]
[358315440,1744926641139,-150.0,0.00079809,60]
[358315441,1744926641148,-323.60885878,0.0007981,120]
[358315442,1744926641157,-150.0,0.00079822,60]
[358315443,1744926641166,-150.0,0.00079823,60]
[358315444,1744926641175,-150.0,0.00079826,60]
[358315445,1744926641183,-150.0,0.00079831,60]
[358315446,1744926641192,-150.0,0.00079831,60]
[358315447,1744926641201,-150.0,0.00079834,60]
[358315448,1744926641210,-150.0,0.00079834,60]
[358315449,1744926641219,-150.0,0.00079837,60]
[358315450,1744926641228,-150.0,0.00079846,60]
[358315451,1744926641238,-150.0,0.00079851,60]
[358315452,1744926641248,-150.0,0.00079853,60]
[358315453,1744926641257,-150.0,0.00079854,60]
[358315454,1744926641266,-150.0,0.00079854,60]
[358315455,1744926641276,-150.0,0.00079859,60]
[358315456,1744926641285,-150.0,0.00079863,60]
[358315457,1744926641294,-150.0,0.00079867,60]
[358315458,1744926641304,-150.0,0.00079869,60]
[358315459,1744926641313,-150.0,0.00079871,60]
[358315460,1744926641322,-150.0,0.00079873,60]
[358315461,1744926641331,-150.0,0.00079877,60]
[358315462,1744926641340,-150.0,0.00079883,60]
[358315463,1744926641348,-150.0,0.00079884,60]
[358315464,1744926641357,-150.0,0.00079885,60]
[358315465,1744926641366,-150.0,0.00079886,60]
[358315466,1744926641375,-150.0,0.00079887,60]
[358315467,1744926641384,-150.0,0.00079887,60]
[358315468,1744926641393,-150.0,0.00079887,60]
[358315469,1744926641402,-150.0,0.0007989,60]
[358315470,1744926641411,-150.0,0.00079892,60]
[358315471,1744926641420,-150.0,0.00079892,60]
[358315472,1744926641428,-150.0,0.00079896,60]
[358315473,1744926641437,-150.0,0.00079896,60]
[358315474,1744926641446,-150.0,0.00079898,60]
[358315475,1744926641455,-150.0,0.00079898,60]
[358315476,1744926641464,-9148.2544,0.00079899,2]
[358315477,1744926641473,-515.81423412,0.00079899,120]
[358315478,1744926641482,-4372.77,0.00079899,7]
[358315479,1744926641490,-500.0,0.00079899,120]
[358315480,1744926641500,-358.98533714,0.00079899,120]
[358315481,1744926641510,-500.0,0.00079899,120]
[358315482,1744926641518,-708.68,0.00079899,120]
[358315483,1744926641528,-3423.3012,0.000799,2]
[358315484,1744926641542,-500.0,0.000799,2]
[358315485,1744926641551,-481.3801368,0.000799,120]
[358315486,1744926641561,-37189.5376,0.000799,2]
[358315487,1744926641571,-27933.05354303,0.000799,120]
[358315488,1744926641580,-150.0,0.000799,120]
[358315489,1744926641590,-150.0,0.000799,120]
[358315490,1744926641599,-17639.50054953,0.000799,15]
[358315491,1744926641608,-214.73392249,0.000799,2]
[358315492,1744926641618,-1202.72763232,0.000799,2]
[358315493,1744926641627,-558.1006276,0.000799,2]
[358315494,1744926641636,-243.45492185,0.000799,67]
[358315495,1744926641646,-9847.00604797,0.000799,15]
[358315496,1744926641655,-274.3593289,0.000799,2]
[358315497,1744926641664,-2730.97177482,0.000799,2]
[358315498,1744926641673,-150.0,0.00079902,60]
[358315499,1744926641683,-150.0,0.00079905,60]
[358315500,1744926641692,-150.0,0.00079911,60]
[358315501,1744926641701,-150.0,0.00079911,60]
[358315502,1744926641710,-150.0,0.0007992,60]
[358315503,1744926641719,-150.0,0.00079922,60]
[358315504,1744926641728,-150.0,0.00079922,60]
[358315505,1744926641737,-150.0,0.00079928,60]
[358315506,1744926641746,-150.0,0.00079934,60]
[358315507,1744926641756,-150.0,0.00079937,60]
[358315508,1744926641765,-150.0,0.00079937,60]
[358315509,1744926641774,-150.0,0.00079942,60]
[358315510,1744926641784,-150.0,0.00079945,60]
[358315511,1744926641793,-150.0,0.00079945,60]
[358315512,1744926641802,-150.0,0.00079949,60]
[358315513,1744926641811,-150.0,0.00079954,60]
[358315514,1744926641820,-150.0,0.00079957,60]
[358315515,1744926641829,-150.0,0.00079967,60]
[358315516,1744926641839,-150.0,0.00079967,60]
[358315517,1744926641849,-150.0,0.00079968,60]
[358315518,1744926641862,-150.0,0.00079972,60]
[358315519,1744926641872,-150.0,0.00079978,60]
[358315520,1744926641882,-150.0,0.00079978,60]
[358315521,1744926641892,-150.0,0.00079981,60]
[358315522,1744926641903,-150.0,0.00079982,60]
[358315523,1744926641912,-150.0,0.00079985,60]
[358315524,1744926641922,-150.0,0.00079987,60]
[358315525,1744926641931,-4532.8799194,0.00079988,9]
[358315526,1744926641943,-150.0,0.00079989,60]
[358315527,1744926641953,-150.0,0.0007999,60]
[358315528,1744926641962,-150.0,0.00079993,60]
[358315529,1744926641971,-150.0,0.00079993,60]
[358315530,1744926641980,-150.0,0.00079994,60]
[358315531,1744926641989,-500.0,0.00079999,90]
[358315532,1744926641998,-500.0,0.00079999,90]
[358315533,1744926642008,-150.0,0.00079999,60]
[358315534,1744926642017,-4372.77,0.00079999,7]
[358315535,1744926642027,-4372.77,0.00079999,7]
[358315536,1744926642036,-4372.77,0.00079999,7]
[358315537,1744926642045,-4372.77,0.00079999,7]
[358315538,1744926642054,-4372.77,0.00079999,7]
[358315539,1744926642063,-4372.77,0.00079999,7]
[358315540,1744926642072,-4372.77,0.00079999,7]
[358315541,1744926642081,-4372.77,0.00079999,7]
[358315542,1744926642090,-4372.77,0.00079999,7]
[358315543,1744926642099,-4372.77,0.00079999,7]
[358315544,1744926642107,-4372.77,0.00079999,7]
[358315545,1744926642116,-4372.77,0.00079999,7]
[358315546,1744926642126,-4372.77,0.00079999,7]
[358315547,1744926642135,-4372.77,0.00079999,7]
[358315548,1744926642144,-4372.77,0.00079999,7]
[358315549,1744926642153,-4372.77,0.00079999,7]
[358315550,1744926642162,-4372.77,0.00079999,7]
[358315551,1744926642171,-4372.77,0.00079999,7]
[358315552,1744926642181,-151.0,0.00079999,90]
[358315553,1744926642190,-4372.77,0.00079999,7]
[358315554,1744926642198,-4372.77,0.00079999,7]
[358315555,1744926642208,-4372.8675,0.00079999,7]
[358315556,1744926642217,-500.0,0.00079999,120]
[358315557,1744926642226,-500.0,0.00079999,120]
[358315558,1744926642236,-500.0,0.00079999,120]
[358315559,1744926642247,-500.0,0.00079999,120]
[358315560,1744926642256,-500.0,0.00079999,120]
[358315561,1744926642265,-273.27633845,0.00079999,120]
[358315562,1744926642274,-500.0,0.00079999,120]
[358315563,1744926642284,-500.0,0.00079999,120]
[358315564,1744926642293,-500.0,0.00079999,120]
[358315565,1744926642303,-526.78484703,0.00079999,120]
[358315566,1744926642312,-708.68,0.00079999,120]
[358315567,1744926642322,-708.68,0.00079999,120]
[358315568,1744926642331,-708.68,0.00079999,120]
[358315569,1744926642341,-708.68,0.00079999,120]
[358315570,1744926642350,-708.68,0.00079999,120]
[358315571,1744926642360,-708.68,0.00079999,120]
[358315572,1744926642369,-708.68,0.00079999,120]
[358315573,1744926642379,-708.68,0.00079999,120]
[358315574,1744926642388,-708.68,0.00079999,120]
[358315575,1744926642397,-708.68,0.00079999,120]
[358315576,1744926642407,-708.68,0.00079999,120]
[358315577,1744926642416,-708.68,0.00079999,120]
[358315578,1744926642426,-708.68,0.00079999,120]
[358315579,1744926642435,-708.68,0.00079999,120]
[358315580,1744926642444,-708.68,0.00079999,120]
[358315581,1744926642453,-708.68,0.00079999,120]
[358315582,1744926642465,-708.68,0.00079999,120]
[358315583,1744926642475,-708.68,0.00079999,120]
[358315584,1744926642484,-708.68,0.00079999,120]
[358315585,1744926642494,-708.68,0.00079999,120]
[358315586,1744926642503,-708.80698715,0.00079999,120]
[358315587,1744926642512,-50000.0,0.0008,80]
[358315588,1744926642521,-13494.95232155,0.0008,58]
[358315589,1744926642530,-251.7041951,0.0008,58]
[358315590,1744926642540,-112673.76353289,0.0008,120]
[358315591,1744926642554,-486.05053309,0.0008,120]
[358315592,1744926642570,-1225.56189609,0.0008,120]
[358315593,1744926642582,-323.169975,0.0008,120]
[358315595,1744926642597,-38278.58095462,0.0008,120]
[358315596,1744926642608,-40757.52650001,0.0008,120]
[358315597,1744926642619,-1752.03777311,0.0008,120]
[358315606,1744926642843,-150.0,0.00079767,60]
[358315607,1744926642854,-150.0,0.00079828,60]
[358315608,1744926642865,-150.0,0.00079873,60]
[358315609,1744926642875,-150.0,0.00079885,60]
[358315610,1744926642885,-150.0,0.00079968,60]
[358315611,1744926642894,-150.0,0.00079974,60]
[358315612,1744926642905,-150.0,0.00079975,60]
[358315613,1744926642915,-11689.59089149,0.0008,120]
[358315614,1744926642927,-350.88908869,0.0008,120]
[358315615,1744926642940,-39777.05525851,0.0008,120]
[358315616,1744926642979,-229331.70396059,0.0008,120]
[358315617,1744926644133,-1264.6702155,0.0008,120]
[358315618,1744926644200,-3036.39880822,0.0008,120]
[358315619,1744926644211,-379.90342441,0.0008,120]
[358315624,1744926645771,-2176.55578582,0.0008,120]
[358315625,1744926645881,-6600.0,0.0008,120]
[358315626,1744926645999,-156.0,0.0008,60]
[358315627,1744926646008,-262.18435819,0.0008,120]
[358315628,1744926646059,-242716.60330925,0.0008,120]
[358315629,1744926646068,-529135.66562772,0.0008,120]
[358315631,1744926646175,-571.03359137,0.0008,120]
[358315634,1744926875870,250.0,0.00017,2]
[358315635,1744926876957,300.0,0.00019,2]
[358315636,1744926878646,-286.71039,0.00021,2]
[358315637,1744927060552,-63.28961,0.00021,2]
[358315638,1744927060579,-400.0,0.00023,2]
[358315639,1744927060604,-450.0,0.00025,2]
[358315643,1744927530122,-229.94513836,0.0005,2]
[358315644,1744927628139,-580.22680803,0.0005,2]
[358315645,1744927637097,-100.94805361,0.0005,2]
[358315646,1744927637117,-962.44704976,0.0005,2]
[358315647,1744927637144,-492.82291144,0.0005,2]
[358315648,1744927637164,-151.41837808,0.000538,2]
[358315649,1744927637185,-997.22052649,0.000539,2]
[358315650,1744927637214,-1000.0,0.00054,3]
[358315651,1744927637239,-350.0,0.00055,111]
[358315652,1744927637260,-250.0,0.00055,2]
[358315653,1744927637290,-153.52,0.000551,54]
[358315654,1744927637310,-1000.0,0.00056,4]
[358315655,1744927637333,-171.0,0.00058,120]
[358315656,1744927637353,-500.0,0.00059151,2]
[358315657,1744927637377,-500.0,0.00061659,120]
[358315658,1744927637398,-151.41837806,0.0006485,2]
[358315659,1744927637420,-171.0,0.00068,120]
[358315660,1744927637442,-900.0,0.00069553,20]
[358315661,1744927637463,-167.02,0.00069654,2]
[358315662,1744927637484,-200.0,0.0007,120]
[358315663,1744927637505,-448.44658,0.00073835,30]
[358315664,1744927637525,-227.6769,0.00074206,2]
[358315665,1744927637546,-155.2609787,0.00074306,120]
[358315666,1744927637566,-2837.49,0.00074306,2]
[358315667,1744927637589,-32.98077339,0.00074306,2]
[358315668,1744927643080,-218.92505693,0.00074306,2]
[358315669,1744927647169,-224.36033316,0.00074306,2]
[358315670,1744927651088,-151.0,0.00051537,30]
[358315671,1744927651113,-729.69298436,0.00074306,2]
[358315674,1744927831922,-151.0,0.00049887,30]
[358315675,1744927831932,-151.0,0.00050243,30]
[358315676,1744927831942,-199.28,0.00050244,30]
[358315677,1744927831952,-19709.15073114,0.00053825,2]
[358315678,1744927831961,-150690.09070707,0.00053835,90]
[358315679,1744927832093,-900.0,0.00053835,90]
[358315696,1744927838007,-45409.90929293,0.00053835,90]
[358315697,1744927838018,-350.0,0.00056714,111]
[358315698,1744927838028,-250.0,0.00056714,2]
[358315699,1744927838038,-350.0,0.00062932,111]
[358315700,1744927838047,-250.0,0.00062932,2]
[358315701,1744927838057,-4567.12158692,0.000743,120]
[358315702,1744927838067,-510.84,0.000743,2]
[358315703,1744927838076,-1533.57,0.000743,2]
[358315704,1744927838086,-881.9,0.000743,2]
[358315705,1744927838096,-999.99,0.000743,20]
[358315706,1744927838105,-437.66,0.000743,2]
[358315707,1744927838116,-11070.48,0.000743,30]
[358315708,1744927838126,-6433.36,0.00074306,60]
[358315709,1744927838135,-9999.99,0.00074306,2]
[358315710,1744927838145,-332.58,0.00074306,30]
[358315711,1744927838155,-523.93,0.00074306,90]
[358315712,1744927838165,-9999.99,0.00074306,2]
[358315713,1744927838174,-4258.36,0.00074306,2]
[358315714,1744927838183,-150.99,0.00074306,31]
[358315715,1744927838192,-499.99,0.00074306,30]
[358315716,1744927838202,-8794.03,0.00074306,2]
[358315717,1744927838211,-500.0,0.00074366,120]
[358315718,1744927838220,-500.0,0.00074366,120]
[358315719,1744927838231,-1000.0,0.00074915,16]
[358315720,1744927838241,-150.0,0.00074917,2]
[358315721,1744927838250,-290.21386397,0.00074917,2]
[358315722,1744927838260,-150.0,0.00074917,2]
[358315723,1744927838269,-1639.74832563,0.00074917,2]
[358315724,1744927838279,-1698.8155795,0.00075,76]
[358315725,1744927838288,-250.0,0.00075522,120]
[358315726,1744927838297,-151.41837806,0.000759,2]
[358315727,1744927838307,-1800.0,0.00076,77]
[358315728,1744927838316,-3362.49,0.00076,2]
[358315729,1744927838325,-2033.25,0.00076,2]
[358315730,1744927838338,-494.63,0.00076222,2]
[358315731,1744927838347,-23900.0,0.00076547,2]
[358315732,1744927838358,-1800.0,0.00077,78]
[358315733,1744927838368,-200.0,0.00077009,2]
[358315734,1744927838379,-1000.0,0.00077944,120]
[358315735,1744927838389,-187.76441307,0.00078,10]
[358315736,1744927838398,-1800.0,0.00078,79]
[358315737,1744927838409,-150.0,0.0007804,30]
[358315738,1744927838418,-919.04,0.00078333,30]
[358315739,1744927838427,-3153.55309602,0.00078386,15]
[358315740,1744927838437,-494.63,0.00078486,2]
[358315741,1744927838447,-151.67368183,0.00078498,2]
[358315742,1744927838456,-211.02692822,0.00078553,120]
[358315743,1744927838466,-230.30826712,0.00078553,120]
[358315744,1744927838476,-500.0,0.00078553,120]
[358315745,1744927838485,-500.0,0.00078553,120]
[358315746,1744927838495,-500.0,0.00078553,120]
[358315747,1744927838505,-500.0,0.00078553,120]
[358315748,1744927838515,-459.99521717,0.00078553,120]
[358315749,1744927838524,-500.0,0.00078553,120]
[358315750,1744927838534,-500.0,0.00078553,120]
[358315751,1744927838542,-500.0,0.00078553,120]
[358315752,1744927838551,-500.0,0.00078553,120]
[358315753,1744927838561,-500.0,0.00078553,120]
[358315754,1744927838571,-500.0,0.00078553,120]
[358315755,1744927838580,-3153.55309599,0.00078554,15]
[358315756,1744927838590,-2299.27062004,0.00078601,2]
[358315757,1744927838599,-203.69,0.00078714,2]
[358315758,1744927838610,-3153.55309599,0.00078722,15]
[358315759,1744927838619,-3153.55309599,0.00078891,15]
[358315760,1744927838628,-176.5,0.00078972,120]
[358315761,1744927838638,-1800.0,0.00079,80]
[358315762,1744927838647,-3153.55309599,0.00079059,15]
[358315763,1744927838657,-450.95,0.00079141,30]
[358315764,1744927838666,-165.64,0.00079222,2]
[358315765,1744927838675,-3153.55309599,0.00079227,15]
[358315766,1744927838684,-2976.35183096,0.00079395,15]
[358315767,1744927838696,-177.20126503,0.00079395,15]
[358315768,1744927838706,-382.50789663,0.00079564,15]
[358315769,1744927838857,-2771.04519936,0.00079564,15]
[358315770,1744927838872,-959.7218,0.00079599,14]
[358315771,1744927838882,-2000.0,0.00079599,14]
[358315772,1744927838891,-1056.77,0.000796,120]
[358315773,1744927838900,-3153.55309599,0.00079732,15]
[358315774,1744927838910,-150.0,0.00079735,60]
[358315775,1744927838919,-150.0,0.0007977,60]
[358315776,1744927838929,-150.0,0.00079787,60]